Workbook

Sheet SD issue
A1: Is there any opposing LT movement? (Y/N): | E1: Y | G1: If the answer is no, there is no SD problem
A3: Input
A4: # opposing lanes 1 | B4: 2
A5: Opposing speed limit (mph) | B5: 40 | P5: Required SD (ft): | Q5: =B5*0.44704*(5.5+0.5*(B4-1))*3.281 -> 352.0171776
A6: LT offset X0 (ft) | B6: -8
A7: Intersection Length, L (ft) | B7: 100
A8: OTHLW (ft) | B8: 12
A9: OLTLW (ft) | B9: 13
A10: Yi (ft) 2 | B10: 0
A11: Vw (ft) | B11: 7
A12: lateral position of OLT vehicle xl (ft) 3 | B12: 1.5
A13: xi (ft) 4 | B13: 3.5 | P13: Available SD (ft): | Q13: =IF(B17>0,B15+B15*(B16+B8/2)/B17,1500) -> 230
A15: Ya (ft) | B15: =B7-2*B10-8 -> 92
A16: xr (ft) | B16: =B9-B12-B11 -> 4.5
A17: vehicle offset (ft) | B17: =B13-B6-B16 -> 7
D20: * Yi is negative in this figure because the driver's eye is behinde the end of the median at the time of making decision.
A21: * If the opposing approach has a significant horizontal/vertical curve ending at intersection, this worksheet cannot be used to calculate the available SD. The required SD can still be calculated by this worksheet; but for the available SD you should use the real sight plan. Google map would be an easy way to approximate the available SD.
A22: 1) the number of lanes that a left-turning vehicle has to cross to complete a left-turn maneuver, including the right-turn lane unless the right turn lane is channelized as a free right turn. | P22: =IF(OR(E1="n",E1="N"),"No SD problem",IF(Q13>=Q5,"No SD Problem","SD Problem")) -> SD Problem
A23: 2) Yi is positive if the driver's eye is beyond the tip of median (or stop bar) at the decision time. It is negative if the driver is behind the tip of median/stop bar.
A24: 3) This parameter can be between .5 to 2.5 feet depending on the OLTLw and opposing median condition. Keep it at 1.5 ft unless you have a good reason.
A25: 4) This parameter can be between 2.5 to 4.5 feet depending on the LTLw and median condition. Keep it at 3.5 ft unless you have a good reason.

Sheet RR diagram
A1: ="Protected/Permited left turn phasing, Speed limit "&IF('SD issue'!B5< 45,"<45","≥45")&" mph, "&IF('SD issue'!P22="SD Problem","Sight Distance Problem","No Sight Distance Problem") -> Protected/Permited left turn phasing, Speed limit <45 mph, Sight Distance Problem
A2: Model Parameters | D2: Base Condition | G2: =IFERROR(B3,"Attention: The research was inconclusive for this approach type. This spreadsheet tool cannot be used") -> 0.33
A3: beta 1: | B3: =HLOOKUP('3-D RR'!$A$4,'3-D RR'!$D$2:$F$4,2,FALSE) -> 0.33 | D3: LT vol | E3: 100
A4: beta 2: | B4: =HLOOKUP('3-D RR'!$A$4,'3-D RR'!$D$2:$F$4,3,FALSE) -> 0.64 | D4: Opp vol | E4: 500
A6: Sampled hours | B6: 1 | C6: 2 | D6: 3 | E6: 4 | F6: 5 | G6: 6 | H6: 7 | I6: 8 | J6: 9 | K6: 10 | L6: 11 | M6: 12 | N6: 13 | O6: 14 | P6: 15 | Q6: 16 | R6: 17 | S6: 18 | T6: 19 | U6: 20 | V6: 21 | W6: 22 | X6: 23 | Y6: 24
A7: LT vol | H7: 90 | I7: 201 | J7: 123 | M7: 74 | N7: 93 | Q7: 73 | R7: 97 | S7: 100
A8: Opp vol | H8: 254 | I8: 435 | J8: 451 | M8: 494 | N8: 540 | Q8: 991 | R8: 1017 | S8: 1012
A10: Estimated 24-hour turning movement volumes
A11: LT vol | B11: 2.16485915 | C11: 0.08808119667 | D11: 1.058214043 | E11: 0.9160809976 | F11: 4.240723473 | G11: 21.06373108 | H11: 90 | I11: 201 | J11: 123 | K11: 59.9657653 | L11: 47.13347757 | M11: 74 | N11: 93 | O11: 72.49664445 | P11: 59.27444645 | Q11: 73 | R11: 97 | S11: 100 | T11: 51.29440391 | U11: 30.48459489 | V11: 27.34555588 | W11: 16.92324415 | X11: 8.829219489 | Y11: 4.332614775
A12: LT st. deviation | B12: 1.544372477 | C12: 0.3117468568 | D12: 1.634703434 | E12: 0.9621471404 | F12: 2.173366211 | G12: 5.115689654 | H12: 0 | I12: 0 | J12: 0 | K12: 10.03755425 | L12: 8.539933982 | M12: 0 | N12: 0 | O12: 12.50256791 | P12: 11.1111477 | Q12: 0 | R12: 0 | S12: 0 | T12: 9.027680044 | U12: 6.556548255 | V12: 8.899194197 | W12: 4.737775634 | X12: 3.173764261 | Y12: 2.279901673
A13: Opp vol | B13: 37.88052405 | C13: 26.18791715 | D13: 12.17698616 | E13: 16.37230393 | F13: 47.73707741 | G13: 147.3860429 | H13: 254 | I13: 435 | J13: 451 | K13: 412.2308784 | L13: 401.0303175 | M13: 494 | N13: 540 | O13: 558.6151207 | P13: 596.1567487 | Q13: 991 | R13: 1017 | S13: 1012 | T13: 606.2956716 | U13: 291.1353575 | V13: 329.8121312 | W13: 188.6847664 | X13: 159.0235461 | Y13: 82.77892926
A14: Opp st. deviation | B14: 10.49183729 | C14: 7.791257122 | D14: 4.43750728 | E14: 5.46215044 | F14: 12.75250099 | G14: 35.1847338 | H14: 0 | I14: 0 | J14: 0 | K14: 94.57029369 | L14: 92.06658976 | M14: 0 | N14: 0 | O14: 127.3832017 | P14: 135.7980747 | Q14: 0 | R14: 0 | S14: 0 | T14: 138.071834 | U14: 67.46584902 | V14: 76.10318375 | W14: 44.53092938 | X14: 37.8160278 | Y14: 20.68811543
A16: Relative Risk | B16: =(B11/$E3)^$B$3*(B13/$E4)^$B$4 -> 0.05414236303 | C16: 0.01486124755 | D16: 0.02067825748 | E16: 0.02383019777 | F16: 0.07837582246 | G16: 0.2736767579 | H16: 0.6261131194 | I16: 1.151720297 | J16: 1.002307248 | K16: 0.7465471562 | L16: 0.6774719817 | M16: 0.8984437917 | N16: 1.025629672 | O16: 0.9654198537 | P16: 0.9417511775 | Q16: 1.396506238 | R16: 1.559478097 | S16: 1.570271416 | T16: 0.9076122574 | U16: 0.4779984717 | V16: 0.4994850193 | W16: 0.298215607 | X16: 0.2156497098 | Y16: 0.1122678478
A17: RR sd | B17: =B16*SQRT(($B$3*B12/B11)^2+($B$4*B14/B13)^2) -> 0.01595524911 | C17: =C16*SQRT(($B$3*C12/C11)^2+($B$4*C14/C13)^2) -> 0.01758668035 | D17: =D16*SQRT(($B$3*D12/D11)^2+($B$4*D14/D13)^2) -> 0.01159212341 | E17: =E16*SQRT(($B$3*E12/E11)^2+($B$4*E14/E13)^2) -> 0.009700895228 | F17: 0.0188483396 | G17: 0.0472172614 | H17: 0 | I17: 0 | J17: 0 | K17: 0.1171109717 | L17: 0.1074661024 | M17: 0 | N17: =N16*SQRT(($B$3*N12/N11)^2+($B$4*N14/N13)^2) -> 0 | O17: =O16*SQRT(($B$3*O12/O11)^2+($B$4*O14/O13)^2) -> 0.1512287351 | P17: =P16*SQRT(($B$3*P12/P11)^2+($B$4*P14/P13)^2) -> 0.1491416137 | Q17: =Q16*SQRT(($B$3*Q12/Q11)^2+($B$4*Q14/Q13)^2) -> 0 | R17: 0 | S17: 0 | T17: 0.1423981703 | U17: 0.07859149759 | V17: 0.0912051795 | W17: 0.05280147846 | X17: 0.04161197485 | Y17: 0.0265053608

Sheet 3-D RR
A2: =IF('SD issue'!B5<45,"LowSp","HighSp") -> LowSp | D2: LowSp noSD | E2: LowSp SD | F2: HighSp SD
A3: =IF('SD issue'!P22="SD Problem","SD","noSD") -> SD | C3: beta 1 | D3: 0.38 | E3: 0.33 | F3: 0.45
A4: =A2&" "&A3 -> LowSp SD | C4: beta 2 | D4: 0.37 | E4: 0.64 | F4: 0.53
B6: RR | C6: 0 | D6: 50 | E6: 100 | F6: 150 | G6: 200 | H6: 250 | I6: 300 | J6: 350 | K6: 400 | L6: 450 | M6: 500
B7: 0 | C7: =(C$6/'RR diagram'!$E$3)^'RR diagram'!$B$3*($B7/'RR diagram'!$E$4)^'RR diagram'!$B$4 -> 0 | D7: =(D$6/'RR diagram'!$E$3)^'RR diagram'!$B$3*($B7/'RR diagram'!$E$4)^'RR diagram'!$B$4 -> 0 | E7: =(E$6/'RR diagram'!$E$3)^'RR diagram'!$B$3*($B7/'RR diagram'!$E$4)^'RR diagram'!$B$4 -> 0 | F7: =(F$6/'RR diagram'!$E$3)^'RR diagram'!$B$3*($B7/'RR diagram'!$E$4)^'RR diagram'!$B$4 -> 0 | G7: =(G$6/'RR diagram'!$E$3)^'RR diagram'!$B$3*($B7/'RR diagram'!$E$4)^'RR diagram'!$B$4 -> 0 | H7: =(H$6/'RR diagram'!$E$3)^'RR diagram'!$B$3*($B7/'RR diagram'!$E$4)^'RR diagram'!$B$4 -> 0 | I7: =(I$6/'RR diagram'!$E$3)^'RR diagram'!$B$3*($B7/'RR diagram'!$E$4)^'RR diagram'!$B$4 -> 0 | J7: =(J$6/'RR diagram'!$E$3)^'RR diagram'!$B$3*($B7/'RR diagram'!$E$4)^'RR diagram'!$B$4 -> 0 | K7: =(K$6/'RR diagram'!$E$3)^'RR diagram'!$B$3*($B7/'RR diagram'!$E$4)^'RR diagram'!$B$4 -> 0 | L7: =(L$6/'RR diagram'!$E$3)^'RR diagram'!$B$3*($B7/'RR diagram'!$E$4)^'RR diagram'!$B$4 -> 0 | M7: =(M$6/'RR diagram'!$E$3)^'RR diagram'!$B$3*($B7/'RR diagram'!$E$4)^'RR diagram'!$B$4 -> 0
B8: 100 | C8: =(C$6/'RR diagram'!$E$3)^'RR diagram'!$B$3*($B8/'RR diagram'!$E$4)^'RR diagram'!$B$4 -> 0 | D8: =(D$6/'RR diagram'!$E$3)^'RR diagram'!$B$3*($B8/'RR diagram'!$E$4)^'RR diagram'!$B$4 -> 0.2840006269 | E8: =(E$6/'RR diagram'!$E$3)^'RR diagram'!$B$3*($B8/'RR diagram'!$E$4)^'RR diagram'!$B$4 -> 0.3569925863 | F8: =(F$6/'RR diagram'!$E$3)^'RR diagram'!$B$3*($B8/'RR diagram'!$E$4)^'RR diagram'!$B$4 -> 0.408102554 | G8: =(G$6/'RR diagram'!$E$3)^'RR diagram'!$B$3*($B8/'RR diagram'!$E$4)^'RR diagram'!$B$4 -> 0.4487444556 | H8: =(H$6/'RR diagram'!$E$3)^'RR diagram'!$B$3*($B8/'RR diagram'!$E$4)^'RR diagram'!$B$4 -> 0.4830358896 | I8: =(I$6/'RR diagram'!$E$3)^'RR diagram'!$B$3*($B8/'RR diagram'!$E$4)^'RR diagram'!$B$4 -> 0.5129903686 | J8: =(J$6/'RR diagram'!$E$3)^'RR diagram'!$B$3*($B8/'RR diagram'!$E$4)^'RR diagram'!$B$4 -> 0.5397611866 | K8: =(K$6/'RR diagram'!$E$3)^'RR diagram'!$B$3*($B8/'RR diagram'!$E$4)^'RR diagram'!$B$4 -> 0.5640777825 | L8: =(L$6/'RR diagram'!$E$3)^'RR diagram'!$B$3*($B8/'RR diagram'!$E$4)^'RR diagram'!$B$4 -> 0.5864342499 | M8: =(M$6/'RR diagram'!$E$3)^'RR diagram'!$B$3*($B8/'RR diagram'!$E$4)^'RR diagram'!$B$4 -> 0.6071825736
B9: 200 | C9: =(C$6/'RR diagram'!$E$3)^'RR diagram'!$B$3*($B9/'RR diagram'!$E$4)^'RR diagram'!$B$4 -> 0 | D9: =(D$6/'RR diagram'!$E$3)^'RR diagram'!$B$3*($B9/'RR diagram'!$E$4)^'RR diagram'!$B$4 -> 0.4425664581 | E9: =(E$6/'RR diagram'!$E$3)^'RR diagram'!$B$3*($B9/'RR diagram'!$E$4)^'RR diagram'!$B$4 -> 0.556311957 | F9: =(F$6/'RR diagram'!$E$3)^'RR diagram'!$B$3*($B9/'RR diagram'!$E$4)^'RR diagram'!$B$4 -> 0.6359581099 | G9: =(G$6/'RR diagram'!$E$3)^'RR diagram'!$B$3*($B9/'RR diagram'!$E$4)^'RR diagram'!$B$4 -> 0.6992915703 | H9: =(H$6/'RR diagram'!$E$3)^'RR diagram'!$B$3*($B9/'RR diagram'!$E$4)^'RR diagram'!$B$4 -> 0.7527289118 | I9: =(I$6/'RR diagram'!$E$3)^'RR diagram'!$B$3*($B9/'RR diagram'!$E$4)^'RR diagram'!$B$4 -> 0.7994078498 | J9: =(J$6/'RR diagram'!$E$3)^'RR diagram'!$B$3*($B9/'RR diagram'!$E$4)^'RR diagram'!$B$4 -> 0.8411255961 | K9: =(K$6/'RR diagram'!$E$3)^'RR diagram'!$B$3*($B9/'RR diagram'!$E$4)^'RR diagram'!$B$4 -> 0.8790188566 | L9: =(L$6/'RR diagram'!$E$3)^'RR diagram'!$B$3*($B9/'RR diagram'!$E$4)^'RR diagram'!$B$4 -> 0.9138575917 | M9: =(M$6/'RR diagram'!$E$3)^'RR diagram'!$B$3*($B9/'RR diagram'!$E$4)^'RR diagram'!$B$4 -> 0.9461903095
B10: 300 | C10: =(C$6/'RR diagram'!$E$3)^'RR diagram'!$B$3*($B10/'RR diagram'!$E$4)^'RR diagram'!$B$4 -> 0 | D10: =(D$6/'RR diagram'!$E$3)^'RR diagram'!$B$3*($B10/'RR diagram'!$E$4)^'RR diagram'!$B$4 -> 0.5736895006 | E10: =(E$6/'RR diagram'!$E$3)^'RR diagram'!$B$3*($B10/'RR diagram'!$E$4)^'RR diagram'!$B$4 -> 0.721135375 | F10: =(F$6/'RR diagram'!$E$3)^'RR diagram'!$B$3*($B10/'RR diagram'!$E$4)^'RR diagram'!$B$4 -> 0.8243789916 | G10: =(G$6/'RR diagram'!$E$3)^'RR diagram'!$B$3*($B10/'RR diagram'!$E$4)^'RR diagram'!$B$4 -> 0.9064768113 | H10: =(H$6/'RR diagram'!$E$3)^'RR diagram'!$B$3*($B10/'RR diagram'!$E$4)^'RR diagram'!$B$4 -> 0.9757465022 | I10: =(I$6/'RR diagram'!$E$3)^'RR diagram'!$B$3*($B10/'RR diagram'!$E$4)^'RR diagram'!$B$4 -> 1.036255418 | J10: =(J$6/'RR diagram'!$E$3)^'RR diagram'!$B$3*($B10/'RR diagram'!$E$4)^'RR diagram'!$B$4 -> 1.090333247 | K10: =(K$6/'RR diagram'!$E$3)^'RR diagram'!$B$3*($B10/'RR diagram'!$E$4)^'RR diagram'!$B$4 -> 1.139453475 | L10: =(L$6/'RR diagram'!$E$3)^'RR diagram'!$B$3*($B10/'RR diagram'!$E$4)^'RR diagram'!$B$4 -> 1.184614188 | M10: =(M$6/'RR diagram'!$E$3)^'RR diagram'!$B$3*($B10/'RR diagram'!$E$4)^'RR diagram'!$B$4 -> 1.226526403
B11: 400 | C11: =(C$6/'RR diagram'!$E$3)^'RR diagram'!$B$3*($B11/'RR diagram'!$E$4)^'RR diagram'!$B$4 -> 0 | D11: =(D$6/'RR diagram'!$E$3)^'RR diagram'!$B$3*($B11/'RR diagram'!$E$4)^'RR diagram'!$B$4 -> 0.6896642166 | E11: =(E$6/'RR diagram'!$E$3)^'RR diagram'!$B$3*($B11/'RR diagram'!$E$4)^'RR diagram'!$B$4 -> 0.8669171442 | F11: =(F$6/'RR diagram'!$E$3)^'RR diagram'!$B$3*($B11/'RR diagram'!$E$4)^'RR diagram'!$B$4 -> 0.9910320668 | G11: =(G$6/'RR diagram'!$E$3)^'RR diagram'!$B$3*($B11/'RR diagram'!$E$4)^'RR diagram'!$B$4 -> 1.089726445 | H11: =(H$6/'RR diagram'!$E$3)^'RR diagram'!$B$3*($B11/'RR diagram'!$E$4)^'RR diagram'!$B$4 -> 1.172999412 | I11: =(I$6/'RR diagram'!$E$3)^'RR diagram'!$B$3*($B11/'RR diagram'!$E$4)^'RR diagram'!$B$4 -> 1.245740563 | J11: =(J$6/'RR diagram'!$E$3)^'RR diagram'!$B$3*($B11/'RR diagram'!$E$4)^'RR diagram'!$B$4 -> 1.310750543 | K11: =(K$6/'RR diagram'!$E$3)^'RR diagram'!$B$3*($B11/'RR diagram'!$E$4)^'RR diagram'!$B$4 -> 1.369800716 | L11: =(L$6/'RR diagram'!$E$3)^'RR diagram'!$B$3*($B11/'RR diagram'!$E$4)^'RR diagram'!$B$4 -> 1.424090933 | M11: =(M$6/'RR diagram'!$E$3)^'RR diagram'!$B$3*($B11/'RR diagram'!$E$4)^'RR diagram'!$B$4 -> 1.47447595
B12: 500 | C12: =(C$6/'RR diagram'!$E$3)^'RR diagram'!$B$3*($B12/'RR diagram'!$E$4)^'RR diagram'!$B$4 -> 0 | D12: =(D$6/'RR diagram'!$E$3)^'RR diagram'!$B$3*($B12/'RR diagram'!$E$4)^'RR diagram'!$B$4 -> 0.7955364838 | E12: =(E$6/'RR diagram'!$E$3)^'RR diagram'!$B$3*($B12/'RR diagram'!$E$4)^'RR diagram'!$B$4 -> 1 | F12: =(F$6/'RR diagram'!$E$3)^'RR diagram'!$B$3*($B12/'RR diagram'!$E$4)^'RR diagram'!$B$4 -> 1.143168149 | G12: =(G$6/'RR diagram'!$E$3)^'RR diagram'!$B$3*($B12/'RR diagram'!$E$4)^'RR diagram'!$B$4 -> 1.257013375 | H12: =(H$6/'RR diagram'!$E$3)^'RR diagram'!$B$3*($B12/'RR diagram'!$E$4)^'RR diagram'!$B$4 -> 1.353069806 | I12: =(I$6/'RR diagram'!$E$3)^'RR diagram'!$B$3*($B12/'RR diagram'!$E$4)^'RR diagram'!$B$4 -> 1.436977652 | J12: =(J$6/'RR diagram'!$E$3)^'RR diagram'!$B$3*($B12/'RR diagram'!$E$4)^'RR diagram'!$B$4 -> 1.511967495 | K12: =(K$6/'RR diagram'!$E$3)^'RR diagram'!$B$3*($B12/'RR diagram'!$E$4)^'RR diagram'!$B$4 -> 1.580082624 | L12: =(L$6/'RR diagram'!$E$3)^'RR diagram'!$B$3*($B12/'RR diagram'!$E$4)^'RR diagram'!$B$4 -> 1.642707082 | M12: =(M$6/'RR diagram'!$E$3)^'RR diagram'!$B$3*($B12/'RR diagram'!$E$4)^'RR diagram'!$B$4 -> 1.700826843
B13: 600 | C13: =(C$6/'RR diagram'!$E$3)^'RR diagram'!$B$3*($B13/'RR diagram'!$E$4)^'RR diagram'!$B$4 -> 0 | D13: =(D$6/'RR diagram'!$E$3)^'RR diagram'!$B$3*($B13/'RR diagram'!$E$4)^'RR diagram'!$B$4 -> 0.8939970771 | E13: =(E$6/'RR diagram'!$E$3)^'RR diagram'!$B$3*($B13/'RR diagram'!$E$4)^'RR diagram'!$B$4 -> 1.123766283 | F13: =(F$6/'RR diagram'!$E$3)^'RR diagram'!$B$3*($B13/'RR diagram'!$E$4)^'RR diagram'!$B$4 -> 1.284653821 | G13: =(G$6/'RR diagram'!$E$3)^'RR diagram'!$B$3*($B13/'RR diagram'!$E$4)^'RR diagram'!$B$4 -> 1.412589247 | H13: =(H$6/'RR diagram'!$E$3)^'RR diagram'!$B$3*($B13/'RR diagram'!$E$4)^'RR diagram'!$B$4 -> 1.520534226 | I13: =(I$6/'RR diagram'!$E$3)^'RR diagram'!$B$3*($B13/'RR diagram'!$E$4)^'RR diagram'!$B$4 -> 1.614827035 | J13: =(J$6/'RR diagram'!$E$3)^'RR diagram'!$B$3*($B13/'RR diagram'!$E$4)^'RR diagram'!$B$4 -> 1.699098092 | K13: =(K$6/'RR diagram'!$E$3)^'RR diagram'!$B$3*($B13/'RR diagram'!$E$4)^'RR diagram'!$B$4 -> 1.775643576 | L13: =(L$6/'RR diagram'!$E$3)^'RR diagram'!$B$3*($B13/'RR diagram'!$E$4)^'RR diagram'!$B$4 -> 1.846018832 | M13: =(M$6/'RR diagram'!$E$3)^'RR diagram'!$B$3*($B13/'RR diagram'!$E$4)^'RR diagram'!$B$4 -> 1.911331859
B14: 700 | C14: =(C$6/'RR diagram'!$E$3)^'RR diagram'!$B$3*($B14/'RR diagram'!$E$4)^'RR diagram'!$B$4 -> 0 | D14: =(D$6/'RR diagram'!$E$3)^'RR diagram'!$B$3*($B14/'RR diagram'!$E$4)^'RR diagram'!$B$4 -> 0.9866929934 | E14: =(E$6/'RR diagram'!$E$3)^'RR diagram'!$B$3*($B14/'RR diagram'!$E$4)^'RR diagram'!$B$4 -> 1.240286289 | F14: =(F$6/'RR diagram'!$E$3)^'RR diagram'!$B$3*($B14/'RR diagram'!$E$4)^'RR diagram'!$B$4 -> 1.417855781 | G14: =(G$6/'RR diagram'!$E$3)^'RR diagram'!$B$3*($B14/'RR diagram'!$E$4)^'RR diagram'!$B$4 -> 1.559056454 | H14: =(H$6/'RR diagram'!$E$3)^'RR diagram'!$B$3*($B14/'RR diagram'!$E$4)^'RR diagram'!$B$4 -> 1.678193929 | I14: =(I$6/'RR diagram'!$E$3)^'RR diagram'!$B$3*($B14/'RR diagram'!$E$4)^'RR diagram'!$B$4 -> 1.78226368 | J14: =(J$6/'RR diagram'!$E$3)^'RR diagram'!$B$3*($B14/'RR diagram'!$E$4)^'RR diagram'!$B$4 -> 1.875272554 | K14: =(K$6/'RR diagram'!$E$3)^'RR diagram'!$B$3*($B14/'RR diagram'!$E$4)^'RR diagram'!$B$4 -> 1.959754814 | L14: =(L$6/'RR diagram'!$E$3)^'RR diagram'!$B$3*($B14/'RR diagram'!$E$4)^'RR diagram'!$B$4 -> 2.037427072 | M14: =(M$6/'RR diagram'!$E$3)^'RR diagram'!$B$3*($B14/'RR diagram'!$E$4)^'RR diagram'!$B$4 -> 2.109512214
A15: Opp | B15: 800 | C15: =(C$6/'RR diagram'!$E$3)^'RR diagram'!$B$3*($B15/'RR diagram'!$E$4)^'RR diagram'!$B$4 -> 0 | D15: =(D$6/'RR diagram'!$E$3)^'RR diagram'!$B$3*($B15/'RR diagram'!$E$4)^'RR diagram'!$B$4 -> 1.074723859 | E15: =(E$6/'RR diagram'!$E$3)^'RR diagram'!$B$3*($B15/'RR diagram'!$E$4)^'RR diagram'!$B$4 -> 1.350942265 | F15: =(F$6/'RR diagram'!$E$3)^'RR diagram'!$B$3*($B15/'RR diagram'!$E$4)^'RR diagram'!$B$4 -> 1.544354167 | G15: =(G$6/'RR diagram'!$E$3)^'RR diagram'!$B$3*($B15/'RR diagram'!$E$4)^'RR diagram'!$B$4 -> 1.698152495 | H15: =(H$6/'RR diagram'!$E$3)^'RR diagram'!$B$3*($B15/'RR diagram'!$E$4)^'RR diagram'!$B$4 -> 1.827919188 | I15: =(I$6/'RR diagram'!$E$3)^'RR diagram'!$B$3*($B15/'RR diagram'!$E$4)^'RR diagram'!$B$4 -> 1.941273844 | J15: =(J$6/'RR diagram'!$E$3)^'RR diagram'!$B$3*($B15/'RR diagram'!$E$4)^'RR diagram'!$B$4 -> 2.042580792 | K15: =(K$6/'RR diagram'!$E$3)^'RR diagram'!$B$3*($B15/'RR diagram'!$E$4)^'RR diagram'!$B$4 -> 2.134600398 | L15: =(L$6/'RR diagram'!$E$3)^'RR diagram'!$B$3*($B15/'RR diagram'!$E$4)^'RR diagram'!$B$4 -> 2.219202426 | M15: =(M$6/'RR diagram'!$E$3)^'RR diagram'!$B$3*($B15/'RR diagram'!$E$4)^'RR diagram'!$B$4 -> 2.297718867
B16: 900 | C16: =(C$6/'RR diagram'!$E$3)^'RR diagram'!$B$3*($B16/'RR diagram'!$E$4)^'RR diagram'!$B$4 -> 0 | D16: =(D$6/'RR diagram'!$E$3)^'RR diagram'!$B$3*($B16/'RR diagram'!$E$4)^'RR diagram'!$B$4 -> 1.158869425 | E16: =(E$6/'RR diagram'!$E$3)^'RR diagram'!$B$3*($B16/'RR diagram'!$E$4)^'RR diagram'!$B$4 -> 1.456714366 | F16: =(F$6/'RR diagram'!$E$3)^'RR diagram'!$B$3*($B16/'RR diagram'!$E$4)^'RR diagram'!$B$4 -> 1.665269465 | G16: =(G$6/'RR diagram'!$E$3)^'RR diagram'!$B$3*($B16/'RR diagram'!$E$4)^'RR diagram'!$B$4 -> 1.831109441 | H16: =(H$6/'RR diagram'!$E$3)^'RR diagram'!$B$3*($B16/'RR diagram'!$E$4)^'RR diagram'!$B$4 -> 1.971036225 | I16: =(I$6/'RR diagram'!$E$3)^'RR diagram'!$B$3*($B16/'RR diagram'!$E$4)^'RR diagram'!$B$4 -> 2.09326599 | J16: =(J$6/'RR diagram'!$E$3)^'RR diagram'!$B$3*($B16/'RR diagram'!$E$4)^'RR diagram'!$B$4 -> 2.202504771 | K16: =(K$6/'RR diagram'!$E$3)^'RR diagram'!$B$3*($B16/'RR diagram'!$E$4)^'RR diagram'!$B$4 -> 2.301729058 | L16: =(L$6/'RR diagram'!$E$3)^'RR diagram'!$B$3*($B16/'RR diagram'!$E$4)^'RR diagram'!$B$4 -> 2.392955006 | M16: =(M$6/'RR diagram'!$E$3)^'RR diagram'!$B$3*($B16/'RR diagram'!$E$4)^'RR diagram'!$B$4 -> 2.477618897
B17: 1000 | C17: =(C$6/'RR diagram'!$E$3)^'RR diagram'!$B$3*($B17/'RR diagram'!$E$4)^'RR diagram'!$B$4 -> 0 | D17: =(D$6/'RR diagram'!$E$3)^'RR diagram'!$B$3*($B17/'RR diagram'!$E$4)^'RR diagram'!$B$4 -> 1.2397077 | E17: =(E$6/'RR diagram'!$E$3)^'RR diagram'!$B$3*($B17/'RR diagram'!$E$4)^'RR diagram'!$B$4 -> 1.558329159 | F17: =(F$6/'RR diagram'!$E$3)^'RR diagram'!$B$3*($B17/'RR diagram'!$E$4)^'RR diagram'!$B$4 -> 1.78143226 | G17: =(G$6/'RR diagram'!$E$3)^'RR diagram'!$B$3*($B17/'RR diagram'!$E$4)^'RR diagram'!$B$4 -> 1.958840595 | H17: =(H$6/'RR diagram'!$E$3)^'RR diagram'!$B$3*($B17/'RR diagram'!$E$4)^'RR diagram'!$B$4 -> 2.108528134 | I17: =(I$6/'RR diagram'!$E$3)^'RR diagram'!$B$3*($B17/'RR diagram'!$E$4)^'RR diagram'!$B$4 -> 2.239284177 | J17: =(J$6/'RR diagram'!$E$3)^'RR diagram'!$B$3*($B17/'RR diagram'!$E$4)^'RR diagram'!$B$4 -> 2.356143036 | K17: =(K$6/'RR diagram'!$E$3)^'RR diagram'!$B$3*($B17/'RR diagram'!$E$4)^'RR diagram'!$B$4 -> 2.462288827 | L17: =(L$6/'RR diagram'!$E$3)^'RR diagram'!$B$3*($B17/'RR diagram'!$E$4)^'RR diagram'!$B$4 -> 2.559878347 | M17: =(M$6/'RR diagram'!$E$3)^'RR diagram'!$B$3*($B17/'RR diagram'!$E$4)^'RR diagram'!$B$4 -> 2.650448065
B18: 1100 | C18: =(C$6/'RR diagram'!$E$3)^'RR diagram'!$B$3*($B18/'RR diagram'!$E$4)^'RR diagram'!$B$4 -> 0 | D18: =(D$6/'RR diagram'!$E$3)^'RR diagram'!$B$3*($B18/'RR diagram'!$E$4)^'RR diagram'!$B$4 -> 1.317682012 | E18: =(E$6/'RR diagram'!$E$3)^'RR diagram'!$B$3*($B18/'RR diagram'!$E$4)^'RR diagram'!$B$4 -> 1.656343912 | F18: =(F$6/'RR diagram'!$E$3)^'RR diagram'!$B$3*($B18/'RR diagram'!$E$4)^'RR diagram'!$B$4 -> 1.893479603 | G18: =(G$6/'RR diagram'!$E$3)^'RR diagram'!$B$3*($B18/'RR diagram'!$E$4)^'RR diagram'!$B$4 -> 2.08204645 | H18: =(H$6/'RR diagram'!$E$3)^'RR diagram'!$B$3*($B18/'RR diagram'!$E$4)^'RR diagram'!$B$4 -> 2.241148936 | I18: =(I$6/'RR diagram'!$E$3)^'RR diagram'!$B$3*($B18/'RR diagram'!$E$4)^'RR diagram'!$B$4 -> 2.380129186 | J18: =(J$6/'RR diagram'!$E$3)^'RR diagram'!$B$3*($B18/'RR diagram'!$E$4)^'RR diagram'!$B$4 -> 2.504338155 | K18: =(K$6/'RR diagram'!$E$3)^'RR diagram'!$B$3*($B18/'RR diagram'!$E$4)^'RR diagram'!$B$4 -> 2.617160234 | L18: =(L$6/'RR diagram'!$E$3)^'RR diagram'!$B$3*($B18/'RR diagram'!$E$4)^'RR diagram'!$B$4 -> 2.720887875 | M18: =(M$6/'RR diagram'!$E$3)^'RR diagram'!$B$3*($B18/'RR diagram'!$E$4)^'RR diagram'!$B$4 -> 2.817154187
B19: 1200 | C19: =(C$6/'RR diagram'!$E$3)^'RR diagram'!$B$3*($B19/'RR diagram'!$E$4)^'RR diagram'!$B$4 -> 0 | D19: =(D$6/'RR diagram'!$E$3)^'RR diagram'!$B$3*($B19/'RR diagram'!$E$4)^'RR diagram'!$B$4 -> 1.393141714 | E19: =(E$6/'RR diagram'!$E$3)^'RR diagram'!$B$3*($B19/'RR diagram'!$E$4)^'RR diagram'!$B$4 -> 1.751197767 | F19: =(F$6/'RR diagram'!$E$3)^'RR diagram'!$B$3*($B19/'RR diagram'!$E$4)^'RR diagram'!$B$4 -> 2.001913509 | G19: =(G$6/'RR diagram'!$E$3)^'RR diagram'!$B$3*($B19/'RR diagram'!$E$4)^'RR diagram'!$B$4 -> 2.201279014 | H19: =(H$6/'RR diagram'!$E$3)^'RR diagram'!$B$3*($B19/'RR diagram'!$E$4)^'RR diagram'!$B$4 -> 2.369492823 | I19: =(I$6/'RR diagram'!$E$3)^'RR diagram'!$B$3*($B19/'RR diagram'!$E$4)^'RR diagram'!$B$4 -> 2.516432055 | J19: =(J$6/'RR diagram'!$E$3)^'RR diagram'!$B$3*($B19/'RR diagram'!$E$4)^'RR diagram'!$B$4 -> 2.647754101 | K19: =(K$6/'RR diagram'!$E$3)^'RR diagram'!$B$3*($B19/'RR diagram'!$E$4)^'RR diagram'!$B$4 -> 2.767037162 | L19: =(L$6/'RR diagram'!$E$3)^'RR diagram'!$B$3*($B19/'RR diagram'!$E$4)^'RR diagram'!$B$4 -> 2.876704974 | M19: =(M$6/'RR diagram'!$E$3)^'RR diagram'!$B$3*($B19/'RR diagram'!$E$4)^'RR diagram'!$B$4 -> 2.978484169
B20: 1300 | C20: =(C$6/'RR diagram'!$E$3)^'RR diagram'!$B$3*($B20/'RR diagram'!$E$4)^'RR diagram'!$B$4 -> 0 | D20: =(D$6/'RR diagram'!$E$3)^'RR diagram'!$B$3*($B20/'RR diagram'!$E$4)^'RR diagram'!$B$4 -> 1.466368235 | E20: =(E$6/'RR diagram'!$E$3)^'RR diagram'!$B$3*($B20/'RR diagram'!$E$4)^'RR diagram'!$B$4 -> 1.843244483 | F20: =(F$6/'RR diagram'!$E$3)^'RR diagram'!$B$3*($B20/'RR diagram'!$E$4)^'RR diagram'!$B$4 -> 2.107138383 | G20: =(G$6/'RR diagram'!$E$3)^'RR diagram'!$B$3*($B20/'RR diagram'!$E$4)^'RR diagram'!$B$4 -> 2.316982968 | H20: =(H$6/'RR diagram'!$E$3)^'RR diagram'!$B$3*($B20/'RR diagram'!$E$4)^'RR diagram'!$B$4 -> 2.494038455 | I20: =(I$6/'RR diagram'!$E$3)^'RR diagram'!$B$3*($B20/'RR diagram'!$E$4)^'RR diagram'!$B$4 -> 2.64870113 | J20: =(J$6/'RR diagram'!$E$3)^'RR diagram'!$B$3*($B20/'RR diagram'!$E$4)^'RR diagram'!$B$4 -> 2.786925744 | K20: =(K$6/'RR diagram'!$E$3)^'RR diagram'!$B$3*($B20/'RR diagram'!$E$4)^'RR diagram'!$B$4 -> 2.912478579 | L20: =(L$6/'RR diagram'!$E$3)^'RR diagram'!$B$3*($B20/'RR diagram'!$E$4)^'RR diagram'!$B$4 -> 3.027910767 | M20: =(M$6/'RR diagram'!$E$3)^'RR diagram'!$B$3*($B20/'RR diagram'!$E$4)^'RR diagram'!$B$4 -> 3.135039695
B21: 1400 | C21: =(C$6/'RR diagram'!$E$3)^'RR diagram'!$B$3*($B21/'RR diagram'!$E$4)^'RR diagram'!$B$4 -> 0 | D21: =(D$6/'RR diagram'!$E$3)^'RR diagram'!$B$3*($B21/'RR diagram'!$E$4)^'RR diagram'!$B$4 -> 1.537592463 | E21: =(E$6/'RR diagram'!$E$3)^'RR diagram'!$B$3*($B21/'RR diagram'!$E$4)^'RR diagram'!$B$4 -> 1.932774291 | F21: =(F$6/'RR diagram'!$E$3)^'RR diagram'!$B$3*($B21/'RR diagram'!$E$4)^'RR diagram'!$B$4 -> 2.209486007 | G21: =(G$6/'RR diagram'!$E$3)^'RR diagram'!$B$3*($B21/'RR diagram'!$E$4)^'RR diagram'!$B$4 -> 2.429523133 | H21: =(H$6/'RR diagram'!$E$3)^'RR diagram'!$B$3*($B21/'RR diagram'!$E$4)^'RR diagram'!$B$4 -> 2.615178535 | I21: =(I$6/'RR diagram'!$E$3)^'RR diagram'!$B$3*($B21/'RR diagram'!$E$4)^'RR diagram'!$B$4 -> 2.777353462 | J21: =(J$6/'RR diagram'!$E$3)^'RR diagram'!$B$3*($B21/'RR diagram'!$E$4)^'RR diagram'!$B$4 -> 2.922291903 | K21: =(K$6/'RR diagram'!$E$3)^'RR diagram'!$B$3*($B21/'RR diagram'!$E$4)^'RR diagram'!$B$4 -> 3.053943072 | L21: =(L$6/'RR diagram'!$E$3)^'RR diagram'!$B$3*($B21/'RR diagram'!$E$4)^'RR diagram'!$B$4 -> 3.174982016 | M21: =(M$6/'RR diagram'!$E$3)^'RR diagram'!$B$3*($B21/'RR diagram'!$E$4)^'RR diagram'!$B$4 -> 3.287314395
B22: 1500 | C22: =(C$6/'RR diagram'!$E$3)^'RR diagram'!$B$3*($B22/'RR diagram'!$E$4)^'RR diagram'!$B$4 -> 0 | D22: =(D$6/'RR diagram'!$E$3)^'RR diagram'!$B$3*($B22/'RR diagram'!$E$4)^'RR diagram'!$B$4 -> 1.607006763 | E22: =(E$6/'RR diagram'!$E$3)^'RR diagram'!$B$3*($B22/'RR diagram'!$E$4)^'RR diagram'!$B$4 -> 2.020028994 | F22: =(F$6/'RR diagram'!$E$3)^'RR diagram'!$B$3*($B22/'RR diagram'!$E$4)^'RR diagram'!$B$4 -> 2.309232805 | G22: =(G$6/'RR diagram'!$E$3)^'RR diagram'!$B$3*($B22/'RR diagram'!$E$4)^'RR diagram'!$B$4 -> 2.539203462 | H22: =(H$6/'RR diagram'!$E$3)^'RR diagram'!$B$3*($B22/'RR diagram'!$E$4)^'RR diagram'!$B$4 -> 2.733240239 | I22: =(I$6/'RR diagram'!$E$3)^'RR diagram'!$B$3*($B22/'RR diagram'!$E$4)^'RR diagram'!$B$4 -> 2.902736521 | J22: =(J$6/'RR diagram'!$E$3)^'RR diagram'!$B$3*($B22/'RR diagram'!$E$4)^'RR diagram'!$B$4 -> 3.054218178 | K22: =(K$6/'RR diagram'!$E$3)^'RR diagram'!$B$3*($B22/'RR diagram'!$E$4)^'RR diagram'!$B$4 -> 3.191812713 | L22: =(L$6/'RR diagram'!$E$3)^'RR diagram'!$B$3*($B22/'RR diagram'!$E$4)^'RR diagram'!$B$4 -> 3.318315935 | M22: =(M$6/'RR diagram'!$E$3)^'RR diagram'!$B$3*($B22/'RR diagram'!$E$4)^'RR diagram'!$B$4 -> 3.435719537

Sheet LT 24-h paterns
A1: 4 | B1: 0 | C1: 5 | D1: 2 | E1: 3 | F1: 0 | G1: 1 | H1: 2 | I1: 2 | J1: 1 | K1: 3 | L1: 12 | M1: 8 | N1: 4 | O1: 1 | P1: 0 | Q1: 1 | R1: 4 | S1: 5 | T1: 1 | U1: 5 | V1: 6 | W1: 8 | X1: 3 | Y1: 1 | Z1: 2 | AA1: 0 | AB1: 3 | AC1: 4 | AD1: 0 | AE1: 3 | AF1: 6 | AG1: 8 | AH1: 3 | AI1: 3 | AJ1: 1 | AK1: 1 | AL1: 2 | AM1: 1 | AN1: 1 | AO1: 2 | AP1: 4 | AQ1: 6 | AR1: 0 | AS1: 1 | AT1: 0 | AU1: 4 | AV1: 2 | AW1: 4 | AX1: 0 | AY1: 1 | AZ1: 3 | BA1: 5 | BB1: 2 | BC1: 4 | BD1: 2 | BE1: 4 | BF1: 3 | BG1: 6 | BH1: 2 | BI1: 3 | BJ1: 4 | BK1: 4 | BL1: 5 | BM1: 6 | BN1: 0 | BO1: 3 | BP1: 3 | BQ1: 3 | BR1: 0
A2: 1 | B2: 4 | C2: 1 | D2: 0 | E2: 1 | F2: 1 | G2: 2 | H2: 1 | I2: 5 | J2: 0 | K2: 3 | L2: 7 | M2: 5 | N2: 1 | O2: 2 | P2: 0 | Q2: 1 | R2: 1 | S2: 3 | T2: 2 | U2: 4 | V2: 6 | W2: 2 | X2: 0 | Y2: 3 | Z2: 0 | AA2: 2 | AB2: 4 | AC2: 4 | AD2: 0 | AE2: 1 | AF2: 8 | AG2: 2 | AH2: 1 | AI2: 1 | AJ2: 0 | AK2: 0 | AL2: 1 | AM2: 7 | AN2: 0 | AO2: 1 | AP2: 5 | AQ2: 1 | AR2: 3 | AS2: 1 | AT2: 1 | AU2: 1 | AV2: 6 | AW2: 4 | AX2: 1 | AY2: 1 | AZ2: 3 | BA2: 2 | BB2: 0 | BC2: 1 | BD2: 3 | BE2: 1 | BF2: 7 | BG2: 3 | BH2: 3 | BI2: 3 | BJ2: 3 | BK2: 8 | BL2: 1 | BM2: 1 | BN2: 2 | BO2: 2 | BP2: 9 | BQ2: 1 | BR2: 3
A3: 3 | B3: 3 | C3: 8 | D3: 0 | E3: 0 | F3: 1 | G3: 0 | H3: 1 | I3: 3 | J3: 1 | K3: 1 | L3: 0 | M3: 4 | N3: 1 | O3: 2 | P3: 2 | Q3: 1 | R3: 1 | S3: 3 | T3: 1 | U3: 1 | V3: 0 | W3: 5 | X3: 3 | Y3: 1 | Z3: 0 | AA3: 0 | AB3: 2 | AC3: 4 | AD3: 0 | AE3: 1 | AF3: 4 | AG3: 5 | AH3: 1 | AI3: 0 | AJ3: 0 | AK3: 1 | AL3: 1 | AM3: 4 | AN3: 1 | AO3: 1 | AP3: 1 | AQ3: 3 | AR3: 1 | AS3: 1 | AT3: 0 | AU3: 1 | AV3: 2 | AW3: 2 | AX3: 1 | AY3: 0 | AZ3: 0 | BA3: 0 | BB3: 0 | BC3: 0 | BD3: 1 | BE3: 0 | BF3: 4 | BG3: 4 | BH3: 0 | BI3: 0 | BJ3: 4 | BK3: 1 | BL3: 6 | BM3: 5 | BN3: 2 | BO3: 0 | BP3: 2 | BQ3: 2 | BR3: 1
A4: 1 | B4: 3 | C4: 3 | D4: 1 | E4: 1 | F4: 0 | G4: 0 | H4: 6 | I4: 15 | J4: 2 | K4: 1 | L4: 2 | M4: 2 | N4: 1 | O4: 0 | P4: 0 | Q4: 2 | R4: 4 | S4: 12 | T4: 1 | U4: 1 | V4: 2 | W4: 3 | X4: 1 | Y4: 0 | Z4: 1 | AA4: 2 | AB4: 4 | AC4: 14 | AD4: 1 | AE4: 1 | AF4: 1 | AG4: 3 | AH4: 1 | AI4: 3 | AJ4: 0 | AK4: 0 | AL4: 3 | AM4: 8 | AN4: 2 | AO4: 2 | AP4: 4 | AQ4: 5 | AR4: 1 | AS4: 1 | AT4: 1 | AU4: 0 | AV4: 5 | AW4: 9 | AX4: 2 | AY4: 0 | AZ4: 0 | BA4: 0 | BB4: 0 | BC4: 0 | BD4: 0 | BE4: 2 | BF4: 2 | BG4: 1 | BH4: 1 | BI4: 1 | BJ4: 2 | BK4: 0 | BL4: 1 | BM4: 0 | BN4: 1 | BO4: 2 | BP4: 2 | BQ4: 3 | BR4: 0
A5: 7 | B5: 4 | C5: 4 | D5: 5 | E5: 7 | F5: 1 | G5: 7 | H5: 18 | I5: 125 | J5: 5 | K5: 2 | L5: 3 | M5: 7 | N5: 4 | O5: 5 | P5: 1 | Q5: 7 | R5: 22 | S5: 139 | T5: 3 | U5: 5 | V5: 2 | W5: 5 | X5: 4 | Y5: 4 | Z5: 2 | AA5: 8 | AB5: 15 | AC5: 130 | AD5: 3 | AE5: 3 | AF5: 0 | AG5: 2 | AH5: 4 | AI5: 2 | AJ5: 1 | AK5: 9 | AL5: 11 | AM5: 120 | AN5: 2 | AO5: 2 | AP5: 0 | AQ5: 3 | AR5: 0 | AS5: 1 | AT5: 2 | AU5: 8 | AV5: 10 | AW5: 81 | AX5: 1 | AY5: 0 | AZ5: 0 | BA5: 0 | BB5: 0 | BC5: 1 | BD5: 0 | BE5: 2 | BF5: 7 | BG5: 4 | BH5: 0 | BI5: 0 | BJ5: 0 | BK5: 0 | BL5: 0 | BM5: 0 | BN5: 2 | BO5: 3 | BP5: 4 | BQ5: 3 | BR5: 1
A6: 10 | B6: 12 | C6: 20 | D6: 23 | E6: 15 | F6: 4 | G6: 13 | H6: 53 | I6: 163 | J6: 10 | K6: 13 | L6: 15 | M6: 22 | N6: 18 | O6: 16 | P6: 3 | Q6: 16 | R6: 62 | S6: 155 | T6: 6 | U6: 13 | V6: 9 | W6: 27 | X6: 23 | Y6: 12 | Z6: 3 | AA6: 24 | AB6: 49 | AC6: 138 | AD6: 6 | AE6: 8 | AF6: 9 | AG6: 17 | AH6: 9 | AI6: 8 | AJ6: 1 | AK6: 19 | AL6: 52 | AM6: 153 | AN6: 7 | AO6: 9 | AP6: 12 | AQ6: 23 | AR6: 17 | AS6: 9 | AT6: 4 | AU6: 12 | AV6: 47 | AW6: 138 | AX6: 6 | AY6: 1 | AZ6: 7 | BA6: 6 | BB6: 1 | BC6: 8 | BD6: 0 | BE6: 2 | BF6: 12 | BG6: 16 | BH6: 7 | BI6: 0 | BJ6: 0 | BK6: 0 | BL6: 0 | BM6: 0 | BN6: 0 | BO6: 4 | BP6: 5 | BQ6: 18 | BR6: 2
A7: 15 | B7: 44 | C7: 72 | D7: 86 | E7: 46 | F7: 8 | G7: 42 | H7: 167 | I7: 304 | J7: 52 | K7: 21 | L7: 53 | M7: 89 | N7: 99 | O7: 51 | P7: 11 | Q7: 46 | R7: 177 | S7: 331 | T7: 46 | U7: 17 | V7: 46 | W7: 82 | X7: 102 | Y7: 45 | Z7: 5 | AA7: 41 | AB7: 172 | AC7: 295 | AD7: 45 | AE7: 20 | AF7: 49 | AG7: 77 | AH7: 101 | AI7: 57 | AJ7: 7 | AK7: 48 | AL7: 156 | AM7: 296 | AN7: 48 | AO7: 20 | AP7: 37 | AQ7: 67 | AR7: 77 | AS7: 57 | AT7: 7 | AU7: 35 | AV7: 140 | AW7: 278 | AX7: 21 | AY7: 4 | AZ7: 14 | BA7: 12 | BB7: 5 | BC7: 13 | BD7: 1 | BE7: 7 | BF7: 10 | BG7: 19 | BH7: 1 | BI7: 2 | BJ7: 5 | BK7: 2 | BL7: 0 | BM7: 8 | BN7: 1 | BO7: 8 | BP7: 10 | BQ7: 16 | BR7: 1
A8: 38 | B8: 78 | C8: 110 | D8: 212 | E8: 105 | F8: 20 | G8: 38 | H8: 125 | I8: 361 | J8: 23 | K8: 43 | L8: 82 | M8: 128 | N8: 222 | O8: 113 | P8: 23 | Q8: 42 | R8: 133 | S8: 375 | T8: 21 | U8: 38 | V8: 80 | W8: 138 | X8: 208 | Y8: 128 | Z8: 24 | AA8: 45 | AB8: 124 | AC8: 337 | AD8: 34 | AE8: 36 | AF8: 77 | AG8: 129 | AH8: 207 | AI8: 118 | AJ8: 20 | AK8: 43 | AL8: 149 | AM8: 333 | AN8: 30 | AO8: 38 | AP8: 75 | AQ8: 116 | AR8: 187 | AS8: 105 | AT8: 24 | AU8: 40 | AV8: 121 | AW8: 327 | AX8: 26 | AY8: 10 | AZ8: 12 | BA8: 16 | BB8: 8 | BC8: 25 | BD8: 4 | BE8: 8 | BF8: 18 | BG8: 34 | BH8: 6 | BI8: 7 | BJ8: 8 | BK8: 11 | BL8: 5 | BM8: 24 | BN8: 4 | BO8: 14 | BP8: 14 | BQ8: 34 | BR8: 4
A9: 41 | B9: 73 | C9: 145 | D9: 167 | E9: 98 | F9: 28 | G9: 41 | H9: 89 | I9: 198 | J9: 20 | K9: 36 | L9: 85 | M9: 148 | N9: 165 | O9: 101 | P9: 30 | Q9: 41 | R9: 83 | S9: 199 | T9: 13 | U9: 39 | V9: 92 | W9: 164 | X9: 179 | Y9: 99 | Z9: 20 | AA9: 36 | AB9: 84 | AC9: 183 | AD9: 29 | AE9: 43 | AF9: 70 | AG9: 121 | AH9: 159 | AI9: 89 | AJ9: 19 | AK9: 45 | AL9: 84 | AM9: 181 | AN9: 19 | AO9: 37 | AP9: 67 | AQ9: 119 | AR9: 129 | AS9: 94 | AT9: 19 | AU9: 45 | AV9: 84 | AW9: 156 | AX9: 25 | AY9: 19 | AZ9: 21 | BA9: 56 | BB9: 13 | BC9: 40 | BD9: 5 | BE9: 23 | BF9: 42 | BG9: 48 | BH9: 23 | BI9: 7 | BJ9: 12 | BK9: 21 | BL9: 4 | BM9: 29 | BN9: 25 | BO9: 21 | BP9: 23 | BQ9: 94 | BR9: 4
A10: 35 | B10: 61 | C10: 122 | D10: 64 | E10: 85 | F10: 26 | G10: 33 | H10: 74 | I10: 105 | J10: 15 | K10: 30 | L10: 60 | M10: 119 | N10: 66 | O10: 87 | P10: 23 | Q10: 32 | R10: 69 | S10: 112 | T10: 19 | U10: 30 | V10: 68 | W10: 128 | X10: 68 | Y10: 95 | Z10: 14 | AA10: 35 | AB10: 65 | AC10: 121 | AD10: 15 | AE10: 35 | AF10: 60 | AG10: 119 | AH10: 56 | AI10: 97 | AJ10: 21 | AK10: 36 | AL10: 82 | AM10: 126 | AN10: 14 | AO10: 34 | AP10: 60 | AQ10: 117 | AR10: 62 | AS10: 80 | AT10: 18 | AU10: 43 | AV10: 75 | AW10: 99 | AX10: 16 | AY10: 16 | AZ10: 34 | BA10: 80 | BB10: 27 | BC10: 45 | BD10: 9 | BE10: 45 | BF10: 36 | BG10: 59 | BH10: 28 | BI10: 5 | BJ10: 18 | BK10: 40 | BL10: 12 | BM10: 75 | BN10: 22 | BO10: 25 | BP10: 29 | BQ10: 73 | BR10: 5
A11: 45 | B11: 62 | C11: 138 | D11: 50 | E11: 68 | F11: 15 | G11: 45 | H11: 111 | I11: 145 | J11: 13 | K11: 33 | L11: 57 | M11: 111 | N11: 41 | O11: 67 | P11: 14 | Q11: 45 | R11: 78 | S11: 160 | T11: 15 | U11: 37 | V11: 72 | W11: 112 | X11: 54 | Y11: 74 | Z11: 18 | AA11: 46 | AB11: 89 | AC11: 122 | AD11: 14 | AE11: 40 | AF11: 63 | AG11: 125 | AH11: 39 | AI11: 57 | AJ11: 20 | AK11: 40 | AL11: 90 | AM11: 136 | AN11: 12 | AO11: 39 | AP11: 63 | AQ11: 119 | AR11: 41 | AS11: 64 | AT11: 15 | AU11: 55 | AV11: 126 | AW11: 163 | AX11: 35 | AY11: 29 | AZ11: 51 | BA11: 99 | BB11: 35 | BC11: 42 | BD11: 15 | BE11: 50 | BF11: 48 | BG11: 66 | BH11: 19 | BI11: 23 | BJ11: 21 | BK11: 55 | BL11: 17 | BM11: 38 | BN11: 33 | BO11: 32 | BP11: 41 | BQ11: 68 | BR11: 2
A12: 90 | B12: 83 | C12: 166 | D12: 71 | E12: 84 | F12: 26 | G12: 60 | H12: 91 | I12: 177 | J12: 15 | K12: 66 | L12: 86 | M12: 189 | N12: 87 | O12: 98 | P12: 26 | Q12: 54 | R12: 95 | S12: 178 | T12: 22 | U12: 91 | V12: 87 | W12: 183 | X12: 87 | Y12: 118 | Z12: 23 | AA12: 63 | AB12: 100 | AC12: 200 | AD12: 31 | AE12: 73 | AF12: 84 | AG12: 173 | AH12: 79 | AI12: 99 | AJ12: 24 | AK12: 68 | AL12: 85 | AM12: 183 | AN12: 33 | AO12: 84 | AP12: 89 | AQ12: 156 | AR12: 99 | AS12: 115 | AT12: 27 | AU12: 60 | AV12: 98 | AW12: 181 | AX12: 33 | AY12: 26 | AZ12: 50 | BA12: 98 | BB12: 50 | BC12: 35 | BD12: 18 | BE12: 31 | BF12: 40 | BG12: 67 | BH12: 29 | BI12: 17 | BJ12: 28 | BK12: 103 | BL12: 41 | BM12: 60 | BN12: 22 | BO12: 24 | BP12: 42 | BQ12: 38 | BR12: 15
A13: 86 | B13: 109 | C13: 175 | D13: 124 | E13: 102 | F13: 19 | G13: 51 | H13: 81 | I13: 174 | J13: 32 | K13: 79 | L13: 103 | M13: 186 | N13: 137 | O13: 100 | P13: 30 | Q13: 57 | R13: 96 | S13: 180 | T13: 16 | U13: 67 | V13: 113 | W13: 217 | X13: 122 | Y13: 102 | Z13: 23 | AA13: 40 | AB13: 91 | AC13: 197 | AD13: 23 | AE13: 54 | AF13: 78 | AG13: 140 | AH13: 111 | AI13: 86 | AJ13: 17 | AK13: 60 | AL13: 88 | AM13: 187 | AN13: 23 | AO13: 94 | AP13: 118 | AQ13: 195 | AR13: 124 | AS13: 108 | AT13: 31 | AU13: 56 | AV13: 103 | AW13: 163 | AX13: 13 | AY13: 36 | AZ13: 46 | BA13: 97 | BB13: 59 | BC13: 50 | BD13: 12 | BE13: 36 | BF13: 48 | BG13: 77 | BH13: 26 | BI13: 22 | BJ13: 43 | BK13: 78 | BL13: 36 | BM13: 32 | BN13: 21 | BO13: 30 | BP13: 34 | BQ13: 59 | BR13: 24
A14: 38 | B14: 96 | C14: 174 | D14: 74 | E14: 92 | F14: 13 | G14: 54 | H14: 114 | I14: 134 | J14: 13 | K14: 53 | L14: 98 | M14: 155 | N14: 82 | O14: 70 | P14: 14 | Q14: 50 | R14: 153 | S14: 136 | T14: 23 | U14: 62 | V14: 108 | W14: 165 | X14: 88 | Y14: 70 | Z14: 15 | AA14: 52 | AB14: 108 | AC14: 130 | AD14: 35 | AE14: 57 | AF14: 107 | AG14: 167 | AH14: 72 | AI14: 83 | AJ14: 17 | AK14: 44 | AL14: 124 | AM14: 145 | AN14: 21 | AO14: 84 | AP14: 117 | AQ14: 143 | AR14: 95 | AS14: 90 | AT14: 15 | AU14: 56 | AV14: 128 | AW14: 121 | AX14: 20 | AY14: 38 | AZ14: 44 | BA14: 105 | BB14: 52 | BC14: 45 | BD14: 17 | BE14: 32 | BF14: 43 | BG14: 82 | BH14: 15 | BI14: 23 | BJ14: 54 | BK14: 106 | BL14: 36 | BM14: 61 | BN14: 17 | BO14: 26 | BP14: 38 | BQ14: 58 | BR14: 17
A15: 54 | B15: 92 | C15: 156 | D15: 68 | E15: 70 | F15: 27 | G15: 50 | H15: 135 | I15: 144 | J15: 26 | K15: 61 | L15: 93 | M15: 140 | N15: 64 | O15: 68 | P15: 26 | Q15: 52 | R15: 134 | S15: 134 | T15: 22 | U15: 45 | V15: 103 | W15: 144 | X15: 59 | Y15: 83 | Z15: 16 | AA15: 63 | AB15: 131 | AC15: 156 | AD15: 26 | AE15: 22 | AF15: 27 | AG15: 39 | AH15: 17 | AI15: 30 | AJ15: 22 | AK15: 51 | AL15: 136 | AM15: 117 | AN15: 23 | AO15: 64 | AP15: 110 | AQ15: 152 | AR15: 61 | AS15: 75 | AT15: 24 | AU15: 57 | AV15: 164 | AW15: 133 | AX15: 20 | AY15: 27 | AZ15: 46 | BA15: 101 | BB15: 51 | BC15: 31 | BD15: 13 | BE15: 33 | BF15: 37 | BG15: 68 | BH15: 21 | BI15: 26 | BJ15: 57 | BK15: 80 | BL15: 38 | BM15: 39 | BN15: 15 | BO15: 30 | BP15: 43 | BQ15: 76 | BR15: 14
A16: 91 | B16: 81 | C16: 136 | D16: 56 | E16: 79 | F16: 25 | G16: 64 | H16: 223 | I16: 177 | J16: 28 | K16: 89 | L16: 106 | M16: 113 | N16: 64 | O16: 57 | P16: 24 | Q16: 85 | R16: 226 | S16: 172 | T16: 32 | U16: 107 | V16: 105 | W16: 163 | X16: 59 | Y16: 68 | Z16: 26 | AA16: 70 | AB16: 214 | AC16: 179 | AD16: 42 | AE16: 46 | AF16: 55 | AG16: 73 | AH16: 33 | AI16: 45 | AJ16: 29 | AK16: 62 | AL16: 230 | AM16: 169 | AN16: 45 | AO16: 89 | AP16: 87 | AQ16: 131 | AR16: 64 | AS16: 75 | AT16: 13 | AU16: 66 | AV16: 219 | AW16: 149 | AX16: 32 | AY16: 21 | AZ16: 61 | BA16: 78 | BB16: 36 | BC16: 47 | BD16: 19 | BE16: 32 | BF16: 24 | BG16: 55 | BH16: 9 | BI16: 28 | BJ16: 38 | BK16: 73 | BL16: 31 | BM16: 46 | BN16: 13 | BO16: 30 | BP16: 23 | BQ16: 73 | BR16: 14
A17: 194 | B17: 149 | C17: 144 | D17: 94 | E17: 65 | F17: 36 | G17: 81 | H17: 191 | I17: 159 | J17: 36 | K17: 148 | L17: 129 | M17: 129 | N17: 73 | O17: 75 | P17: 26 | Q17: 68 | R17: 241 | S17: 149 | T17: 44 | U17: 195 | V17: 173 | W17: 165 | X17: 92 | Y17: 81 | Z17: 53 | AA17: 79 | AB17: 213 | AC17: 145 | AD17: 38 | AE17: 132 | AF17: 97 | AG17: 101 | AH17: 63 | AI17: 44 | AJ17: 43 | AK17: 69 | AL17: 213 | AM17: 144 | AN17: 33 | AO17: 136 | AP17: 110 | AQ17: 129 | AR17: 81 | AS17: 76 | AT17: 36 | AU17: 83 | AV17: 145 | AW17: 128 | AX17: 40 | AY17: 37 | AZ17: 34 | BA17: 69 | BB17: 36 | BC17: 43 | BD17: 21 | BE17: 38 | BF17: 28 | BG17: 51 | BH17: 16 | BI17: 27 | BJ17: 39 | BK17: 94 | BL17: 24 | BM17: 36 | BN17: 7 | BO17: 24 | BP17: 31 | BQ17: 58 | BR17: 27
A18: 204 | B18: 123 | C18: 145 | D18: 107 | E18: 83 | F18: 48 | G18: 61 | H18: 105 | I18: 123 | J18: 36 | K18: 112 | L18: 76 | M18: 65 | N18: 57 | O18: 57 | P18: 46 | Q18: 59 | R18: 100 | S18: 105 | T18: 20 | U18: 219 | V18: 169 | W18: 162 | X18: 101 | Y18: 82 | Z18: 36 | AA18: 58 | AB18: 110 | AC18: 102 | AD18: 58 | AE18: 119 | AF18: 129 | AG18: 122 | AH18: 74 | AI18: 54 | AJ18: 33 | AK18: 66 | AL18: 101 | AM18: 115 | AN18: 44 | AO18: 104 | AP18: 102 | AQ18: 115 | AR18: 68 | AS18: 68 | AT18: 28 | AU18: 45 | AV18: 60 | AW18: 84 | AX18: 18 | AY18: 24 | AZ18: 36 | BA18: 90 | BB18: 39 | BC18: 47 | BD18: 11 | BE18: 19 | BF18: 33 | BG18: 50 | BH18: 13 | BI18: 21 | BJ18: 36 | BK18: 80 | BL18: 31 | BM18: 44 | BN18: 12 | BO18: 24 | BP18: 30 | BQ18: 61 | BR18: 16
A19: 66 | B19: 82 | C19: 104 | D19: 56 | E19: 63 | F19: 35 | G19: 34 | H19: 42 | I19: 67 | J19: 25 | K19: 38 | L19: 43 | M19: 43 | N19: 52 | O19: 73 | P19: 40 | Q19: 46 | R19: 49 | S19: 91 | T19: 24 | U19: 64 | V19: 86 | W19: 125 | X19: 56 | Y19: 61 | Z19: 36 | AA19: 47 | AB19: 50 | AC19: 77 | AD19: 24 | AE19: 46 | AF19: 88 | AG19: 81 | AH19: 44 | AI19: 73 | AJ19: 37 | AK19: 45 | AL19: 41 | AM19: 54 | AN19: 13 | AO19: 39 | AP19: 63 | AQ19: 90 | AR19: 50 | AS19: 53 | AT19: 22 | AU19: 31 | AV19: 34 | AW19: 64 | AX19: 16 | AY19: 23 | AZ19: 31 | BA19: 82 | BB19: 43 | BC19: 30 | BD19: 8 | BE19: 18 | BF19: 27 | BG19: 48 | BH19: 8 | BI19: 23 | BJ19: 30 | BK19: 57 | BL19: 27 | BM19: 53 | BN19: 11 | BO19: 24 | BP19: 25 | BQ19: 41 | BR19: 6
A20: 34 | B20: 53 | C20: 82 | D20: 34 | E20: 36 | F20: 25 | G20: 40 | H20: 39 | I20: 69 | J20: 14 | K20: 21 | L20: 50 | M20: 46 | N20: 33 | O20: 37 | P20: 22 | Q20: 33 | R20: 25 | S20: 47 | T20: 15 | U20: 22 | V20: 30 | W20: 50 | X20: 32 | Y20: 39 | Z20: 24 | AA20: 33 | AB20: 39 | AC20: 72 | AD20: 20 | AE20: 16 | AF20: 48 | AG20: 78 | AH20: 39 | AI20: 34 | AJ20: 23 | AK20: 31 | AL20: 38 | AM20: 54 | AN20: 17 | AO20: 21 | AP20: 41 | AQ20: 70 | AR20: 41 | AS20: 43 | AT20: 15 | AU20: 28 | AV20: 41 | AW20: 54 | AX20: 13 | AY20: 16 | AZ20: 39 | BA20: 66 | BB20: 29 | BC20: 30 | BD20: 8 | BE20: 12 | BF20: 21 | BG20: 35 | BH20: 2 | BI20: 8 | BJ20: 42 | BK20: 64 | BL20: 23 | BM20: 25 | BN20: 2 | BO20: 30 | BP20: 15 | BQ20: 25 | BR20: 12
A21: 13 | B21: 47 | C21: 47 | D21: 24 | E21: 35 | F21: 18 | G21: 26 | H21: 25 | I21: 44 | J21: 20 | K21: 29 | L21: 44 | M21: 57 | N21: 36 | O21: 45 | P21: 10 | Q21: 29 | R21: 28 | S21: 45 | T21: 12 | U21: 22 | V21: 41 | W21: 58 | X21: 40 | Y21: 47 | Z21: 9 | AA21: 40 | AB21: 29 | AC21: 46 | AD21: 11 | AE21: 34 | AF21: 31 | AG21: 69 | AH21: 30 | AI21: 51 | AJ21: 18 | AK21: 27 | AL21: 37 | AM21: 59 | AN21: 15 | AO21: 19 | AP21: 32 | AQ21: 55 | AR21: 29 | AS21: 38 | AT21: 14 | AU21: 21 | AV21: 14 | AW21: 42 | AX21: 9 | AY21: 16 | AZ21: 19 | BA21: 45 | BB21: 23 | BC21: 23 | BD21: 4 | BE21: 14 | BF21: 27 | BG21: 28 | BH21: 4 | BI21: 10 | BJ21: 23 | BK21: 32 | BL21: 27 | BM21: 24 | BN21: 5 | BO21: 13 | BP21: 9 | BQ21: 36 | BR21: 5
A22: 10 | B22: 22 | C22: 27 | D22: 17 | E22: 19 | F22: 6 | G22: 29 | H22: 15 | I22: 22 | J22: 9 | K22: 20 | L22: 29 | M22: 42 | N22: 26 | O22: 25 | P22: 7 | Q22: 14 | R22: 20 | S22: 28 | T22: 7 | U22: 16 | V22: 39 | W22: 37 | X22: 21 | Y22: 25 | Z22: 8 | AA22: 15 | AB22: 30 | AC22: 28 | AD22: 8 | AE22: 13 | AF22: 35 | AG22: 42 | AH22: 28 | AI22: 29 | AJ22: 7 | AK22: 17 | AL22: 23 | AM22: 43 | AN22: 22 | AO22: 10 | AP22: 40 | AQ22: 39 | AR22: 28 | AS22: 17 | AT22: 10 | AU22: 20 | AV22: 25 | AW22: 24 | AX22: 11 | AY22: 11 | AZ22: 27 | BA22: 43 | BB22: 24 | BC22: 15 | BD22: 7 | BE22: 15 | BF22: 28 | BG22: 29 | BH22: 7 | BI22: 15 | BJ22: 24 | BK22: 21 | BL22: 19 | BM22: 14 | BN22: 4 | BO22: 10 | BP22: 10 | BQ22: 16 | BR22: 5
A23: 9 | B23: 20 | C23: 15 | D23: 10 | E23: 18 | F23: 3 | G23: 4 | H23: 11 | I23: 7 | J23: 6 | K23: 15 | L23: 16 | M23: 21 | N23: 18 | O23: 8 | P23: 7 | Q23: 8 | R23: 13 | S23: 12 | T23: 5 | U23: 16 | V23: 19 | W23: 23 | X23: 9 | Y23: 14 | Z23: 7 | AA23: 9 | AB23: 11 | AC23: 13 | AD23: 4 | AE23: 8 | AF23: 21 | AG23: 22 | AH23: 9 | AI23: 4 | AJ23: 7 | AK23: 8 | AL23: 11 | AM23: 16 | AN23: 6 | AO23: 9 | AP23: 32 | AQ23: 31 | AR23: 13 | AS23: 21 | AT23: 6 | AU23: 8 | AV23: 16 | AW23: 16 | AX23: 7 | AY23: 17 | AZ23: 19 | BA23: 14 | BB23: 13 | BC23: 11 | BD23: 6 | BE23: 5 | BF23: 15 | BG23: 21 | BH23: 12 | BI23: 5 | BJ23: 14 | BK23: 15 | BL23: 10 | BM23: 16 | BN23: 4 | BO23: 4 | BP23: 13 | BQ23: 7 | BR23: 2
A24: 9 | B24: 12 | C24: 10 | D24: 4 | E24: 6 | F24: 3 | G24: 4 | H24: 2 | I24: 7 | J24: 2 | K24: 6 | L24: 10 | M24: 18 | N24: 1 | O24: 5 | P24: 4 | Q24: 6 | R24: 6 | S24: 5 | T24: 2 | U24: 8 | V24: 26 | W24: 17 | X24: 6 | Y24: 6 | Z24: 1 | AA24: 2 | AB24: 7 | AC24: 3 | AD24: 1 | AE24: 8 | AF24: 27 | AG24: 11 | AH24: 5 | AI24: 10 | AJ24: 3 | AK24: 7 | AL24: 4 | AM24: 6 | AN24: 1 | AO24: 2 | AP24: 0 | AQ24: 1 | AR24: 3 | AS24: 0 | AT24: 2 | AU24: 2 | AV24: 12 | AW24: 9 | AX24: 3 | AY24: 8 | AZ24: 15 | BA24: 15 | BB24: 10 | BC24: 13 | BD24: 5 | BE24: 3 | BF24: 6 | BG24: 8 | BH24: 4 | BI24: 9 | BJ24: 5 | BK24: 3 | BL24: 6 | BM24: 8 | BN24: 4 | BO24: 3 | BP24: 3 | BQ24: 6 | BR24: 4

Sheet TH 24-h paterns
A1: 5 | B1: 14 | C1: 56 | D1: 65 | E1: 56 | F1: 49 | G1: 8 | H1: 24 | I1: 30 | J1: 8 | K1: 20 | L1: 77 | M1: 80 | N1: 102 | O1: 76 | P1: 15 | Q1: 57 | R1: 43 | S1: 8 | T1: 14 | U1: 87 | V1: 81 | W1: 94 | X1: 63 | Y1: 8 | Z1: 55 | AA1: 40 | AB1: 10 | AC1: 12 | AD1: 81 | AE1: 64 | AF1: 83 | AG1: 66 | AH1: 12 | AI1: 57 | AJ1: 40 | AK1: 5 | AL1: 13 | AM1: 28 | AN1: 45 | AO1: 28 | AP1: 79 | AQ1: 8 | AR1: 74 | AS1: 60 | AT1: 5 | AU1: 4 | AV1: 61 | AW1: 62 | AX1: 59 | AY1: 103 | AZ1: 12 | BA1: 75 | BB1: 95 | BC1: 20 | BD1: 15 | BE1: 77 | BF1: 106 | BG1: 74 | BH1: 77 | BI1: 4 | BJ1: 42 | BK1: 72
A2: 6 | B2: 10 | C2: 22 | D2: 42 | E2: 25 | F2: 27 | G2: 2 | H2: 16 | I2: 31 | J2: 7 | K2: 9 | L2: 60 | M2: 48 | N2: 66 | O2: 42 | P2: 2 | Q2: 56 | R2: 31 | S2: 8 | T2: 5 | U2: 52 | V2: 56 | W2: 60 | X2: 42 | Y2: 9 | Z2: 55 | AA2: 25 | AB2: 6 | AC2: 7 | AD2: 45 | AE2: 40 | AF2: 42 | AG2: 38 | AH2: 3 | AI2: 65 | AJ2: 27 | AK2: 6 | AL2: 10 | AM2: 47 | AN2: 52 | AO2: 56 | AP2: 55 | AQ2: 6 | AR2: 59 | AS2: 38 | AT2: 4 | AU2: 4 | AV2: 13 | AW2: 23 | AX2: 21 | AY2: 83 | AZ2: 6 | BA2: 34 | BB2: 59 | BC2: 9 | BD2: 11 | BE2: 50 | BF2: 91 | BG2: 49 | BH2: 56 | BI2: 5 | BJ2: 47 | BK2: 76
A3: 7 | B3: 12 | C3: 19 | D3: 37 | E3: 21 | F3: 27 | G3: 4 | H3: 22 | I3: 27 | J3: 6 | K3: 4 | L3: 58 | M3: 35 | N3: 58 | O3: 23 | P3: 4 | Q3: 25 | R3: 28 | S3: 2 | T3: 5 | U3: 58 | V3: 26 | W3: 57 | X3: 19 | Y3: 5 | Z3: 16 | AA3: 34 | AB3: 3 | AC3: 5 | AD3: 49 | AE3: 18 | AF3: 64 | AG3: 18 | AH3: 3 | AI3: 19 | AJ3: 33 | AK3: 0 | AL3: 4 | AM3: 21 | AN3: 23 | AO3: 24 | AP3: 30 | AQ3: 3 | AR3: 31 | AS3: 30 | AT3: 0 | AU3: 0 | AV3: 0 | AW3: 0 | AX3: 0 | AY3: 43 | AZ3: 5 | BA3: 36 | BB3: 46 | BC3: 7 | BD3: 11 | BE3: 40 | BF3: 72 | BG3: 43 | BH3: 63 | BI3: 3 | BJ3: 20 | BK3: 28
A4: 5 | B4: 8 | C4: 23 | D4: 31 | E4: 26 | F4: 21 | G4: 20 | H4: 49 | I4: 106 | J4: 2 | K4: 7 | L4: 29 | M4: 30 | N4: 28 | O4: 23 | P4: 18 | Q4: 49 | R4: 106 | S4: 1 | T4: 10 | U4: 27 | V4: 35 | W4: 21 | X4: 29 | Y4: 18 | Z4: 47 | AA4: 87 | AB4: 4 | AC4: 12 | AD4: 30 | AE4: 27 | AF4: 18 | AG4: 30 | AH4: 14 | AI4: 47 | AJ4: 102 | AK4: 6 | AL4: 10 | AM4: 34 | AN4: 31 | AO4: 31 | AP4: 22 | AQ4: 14 | AR4: 41 | AS4: 76 | AT4: 0 | AU4: 0 | AV4: 0 | AW4: 0 | AX4: 0 | AY4: 39 | AZ4: 3 | BA4: 35 | BB4: 29 | BC4: 1 | BD4: 1 | BE4: 8 | BF4: 5 | BG4: 9 | BH4: 25 | BI4: 6 | BJ4: 17 | BK4: 33
A5: 4 | B5: 10 | C5: 77 | D5: 119 | E5: 73 | F5: 97 | G5: 65 | H5: 190 | I5: 353 | J5: 5 | K5: 7 | L5: 74 | M5: 117 | N5: 58 | O5: 97 | P5: 67 | Q5: 181 | R5: 362 | S5: 4 | T5: 10 | U5: 67 | V5: 102 | W5: 60 | X5: 84 | Y5: 72 | Z5: 180 | AA5: 375 | AB5: 2 | AC5: 4 | AD5: 48 | AE5: 63 | AF5: 35 | AG5: 91 | AH5: 60 | AI5: 197 | AJ5: 360 | AK5: 1 | AL5: 1 | AM5: 6 | AN5: 21 | AO5: 5 | AP5: 55 | AQ5: 61 | AR5: 178 | AS5: 317 | AT5: 2 | AU5: 0 | AV5: 4 | AW5: 4 | AX5: 2 | AY5: 28 | AZ5: 12 | BA5: 55 | BB5: 93 | BC5: 0 | BD5: 0 | BE5: 0 | BF5: 0 | BG5: 0 | BH5: 27 | BI5: 13 | BJ5: 34 | BK5: 55
A6: 28 | B6: 19 | C6: 359 | D6: 313 | E6: 317 | F6: 281 | G6: 153 | H6: 788 | I6: 776 | J6: 22 | K6: 28 | L6: 379 | M6: 299 | N6: 326 | O6: 279 | P6: 162 | Q6: 846 | R6: 796 | S6: 20 | T6: 36 | U6: 364 | V6: 315 | W6: 307 | X6: 307 | Y6: 160 | Z6: 1092 | AA6: 771 | AB6: 10 | AC6: 25 | AD6: 223 | AE6: 201 | AF6: 204 | AG6: 278 | AH6: 151 | AI6: 800 | AJ6: 777 | AK6: 15 | AL6: 40 | AM6: 298 | AN6: 274 | AO6: 263 | AP6: 261 | AQ6: 142 | AR6: 710 | AS6: 776 | AT6: 4 | AU6: 8 | AV6: 63 | AW6: 73 | AX6: 61 | AY6: 76 | AZ6: 47 | BA6: 164 | BB6: 131 | BC6: 0 | BD6: 0 | BE6: 0 | BF6: 0 | BG6: 0 | BH6: 47 | BI6: 28 | BJ6: 77 | BK6: 129
A7: 60 | B7: 85 | C7: 1155 | D7: 606 | E7: 988 | F7: 627 | G7: 351 | H7: 1719 | I7: 1415 | J7: 67 | K7: 98 | L7: 1198 | M7: 584 | N7: 1043 | O7: 631 | P7: 351 | Q7: 1719 | R7: 1522 | S7: 169 | T7: 89 | U7: 1310 | V7: 554 | W7: 1256 | X7: 616 | Y7: 348 | Z7: 1984 | AA7: 1413 | AB7: 64 | AC7: 92 | AD7: 1121 | AE7: 569 | AF7: 992 | AG7: 624 | AH7: 347 | AI7: 1727 | AJ7: 1458 | AK7: 60 | AL7: 71 | AM7: 1009 | AN7: 568 | AO7: 874 | AP7: 612 | AQ7: 322 | AR7: 1605 | AS7: 1322 | AT7: 15 | AU7: 14 | AV7: 175 | AW7: 128 | AX7: 165 | AY7: 109 | AZ7: 59 | BA7: 257 | BB7: 241 | BC7: 5 | BD7: 3 | BE7: 70 | BF7: 74 | BG7: 55 | BH7: 118 | BI7: 33 | BJ7: 142 | BK7: 145
A8: 197 | B8: 230 | C8: 2287 | D8: 1148 | E8: 2220 | F8: 1135 | G8: 308 | H8: 1570 | I8: 1452 | J8: 211 | K8: 240 | L8: 2332 | M8: 1207 | N8: 2256 | O8: 1225 | P8: 301 | Q8: 1717 | R8: 1553 | S8: 280 | T8: 241 | U8: 2436 | V8: 1201 | W8: 2475 | X8: 1169 | Y8: 284 | Z8: 1711 | AA8: 1447 | AB8: 204 | AC8: 242 | AD8: 2281 | AE8: 1171 | AF8: 2178 | AG8: 1179 | AH8: 301 | AI8: 1553 | AJ8: 1481 | AK8: 163 | AL8: 195 | AM8: 2098 | AN8: 1054 | AO8: 2022 | AP8: 1076 | AQ8: 270 | AR8: 1315 | AS8: 1347 | AT8: 32 | AU8: 40 | AV8: 280 | AW8: 280 | AX8: 259 | AY8: 224 | AZ8: 94 | BA8: 347 | BB8: 400 | BC8: 16 | BD8: 14 | BE8: 205 | BF8: 163 | BG8: 164 | BH8: 127 | BI8: 78 | BJ8: 212 | BK8: 241
A9: 180 | B9: 179 | C9: 2025 | D9: 1154 | E9: 1920 | F9: 1121 | G9: 244 | H9: 837 | I9: 965 | J9: 188 | K9: 177 | L9: 2145 | M9: 1184 | N9: 2094 | O9: 1160 | P9: 246 | Q9: 942 | R9: 969 | S9: 191 | T9: 201 | U9: 2146 | V9: 1095 | W9: 2053 | X9: 1082 | Y9: 253 | Z9: 885 | AA9: 1063 | AB9: 175 | AC9: 190 | AD9: 2018 | AE9: 1124 | AF9: 1911 | AG9: 1144 | AH9: 234 | AI9: 891 | AJ9: 985 | AK9: 129 | AL9: 175 | AM9: 1733 | AN9: 1077 | AO9: 1643 | AP9: 1040 | AQ9: 247 | AR9: 894 | AS9: 939 | AT9: 50 | AU9: 62 | AV9: 431 | AW9: 441 | AX9: 359 | AY9: 356 | AZ9: 122 | BA9: 470 | BB9: 493 | BC9: 26 | BD9: 43 | BE9: 309 | BF9: 262 | BG9: 272 | BH9: 194 | BI9: 103 | BJ9: 298 | BK9: 321
A10: 109 | B10: 170 | C10: 1121 | D10: 883 | E10: 1007 | F10: 753 | G10: 238 | H10: 625 | I10: 835 | J10: 81 | K10: 157 | L10: 1216 | M10: 867 | N10: 1101 | O10: 790 | P10: 242 | Q10: 711 | R10: 769 | S10: 124 | T10: 149 | U10: 1107 | V10: 881 | W10: 1047 | X10: 842 | Y10: 228 | Z10: 668 | AA10: 816 | AB10: 110 | AC10: 152 | AD10: 1136 | AE10: 875 | AF10: 1017 | AG10: 789 | AH10: 222 | AI10: 724 | AJ10: 838 | AK10: 113 | AL10: 158 | AM10: 1065 | AN10: 869 | AO10: 1026 | AP10: 792 | AQ10: 232 | AR10: 788 | AS10: 870 | AT10: 55 | AU10: 75 | AV10: 544 | AW10: 614 | AX10: 496 | AY10: 469 | AZ10: 132 | BA10: 550 | BB10: 576 | BC10: 37 | BD10: 52 | BE10: 485 | BF10: 415 | BG10: 382 | BH10: 282 | BI10: 137 | BJ10: 364 | BK10: 420
A11: 108 | B11: 133 | C11: 806 | D11: 878 | E11: 706 | F11: 747 | G11: 351 | H11: 758 | I11: 958 | J11: 119 | K11: 122 | L11: 873 | M11: 796 | N11: 794 | O11: 726 | P11: 320 | Q11: 780 | R11: 993 | S11: 133 | T11: 135 | U11: 821 | V11: 857 | W11: 763 | X11: 741 | Y11: 368 | Z11: 824 | AA11: 969 | AB11: 127 | AC11: 136 | AD11: 877 | AE11: 877 | AF11: 839 | AG11: 751 | AH11: 392 | AI11: 834 | AJ11: 992 | AK11: 122 | AL11: 149 | AM11: 912 | AN11: 942 | AO11: 818 | AP11: 787 | AQ11: 424 | AR11: 843 | AS11: 1085 | AT11: 86 | AU11: 139 | AV11: 630 | AW11: 730 | AX11: 600 | AY11: 552 | AZ11: 164 | BA11: 593 | BB11: 714 | BC11: 39 | BD11: 82 | BE11: 505 | BF11: 509 | BG11: 479 | BH11: 389 | BI11: 201 | BJ11: 495 | BK11: 498
A12: 224 | B12: 192 | C12: 969 | D12: 1039 | E12: 849 | F12: 862 | G12: 327 | H12: 974 | I12: 1001 | J12: 234 | K12: 209 | L12: 1009 | M12: 1088 | N12: 876 | O12: 941 | P12: 334 | Q12: 973 | R12: 1046 | S12: 222 | T12: 204 | U12: 1118 | V12: 1119 | W12: 896 | X12: 976 | Y12: 346 | Z12: 971 | AA12: 1170 | AB12: 221 | AC12: 222 | AD12: 1111 | AE12: 1142 | AF12: 895 | AG12: 994 | AH12: 331 | AI12: 944 | AJ12: 1055 | AK12: 213 | AL12: 208 | AM12: 1055 | AN12: 1152 | AO12: 928 | AP12: 1064 | AQ12: 387 | AR12: 1199 | AS12: 1247 | AT12: 83 | AU12: 135 | AV12: 719 | AW12: 797 | AX12: 622 | AY12: 656 | AZ12: 164 | BA12: 603 | BB12: 742 | BC12: 62 | BD12: 94 | BE12: 574 | BF12: 724 | BG12: 524 | BH12: 506 | BI12: 180 | BJ12: 519 | BK12: 612
A13: 210 | B13: 272 | C13: 1171 | D13: 1195 | E13: 1043 | F13: 965 | G13: 293 | H13: 917 | I13: 1032 | J13: 219 | K13: 270 | L13: 1086 | M13: 1170 | N13: 1030 | O13: 964 | P13: 299 | Q13: 854 | R13: 958 | S13: 217 | T13: 276 | U13: 1143 | V13: 1280 | W13: 1053 | X13: 1125 | Y13: 302 | Z13: 942 | AA13: 1003 | AB13: 190 | AC13: 209 | AD13: 879 | AE13: 949 | AF13: 772 | AG13: 1020 | AH13: 294 | AI13: 949 | AJ13: 1005 | AK13: 322 | AL13: 257 | AM13: 1232 | AN13: 1437 | AO13: 1220 | AP13: 1180 | AQ13: 284 | AR13: 1133 | AS13: 1073 | AT13: 75 | AU13: 112 | AV13: 760 | AW13: 889 | AX13: 659 | AY13: 727 | AZ13: 151 | BA13: 614 | BB13: 695 | BC13: 61 | BD13: 116 | BE13: 616 | BF13: 823 | BG13: 537 | BH13: 619 | BI13: 139 | BJ13: 627 | BK13: 618
A14: 135 | B14: 222 | C14: 996 | D14: 1118 | E14: 996 | F14: 930 | G14: 360 | H14: 943 | I14: 1088 | J14: 175 | K14: 212 | L14: 954 | M14: 1141 | N14: 924 | O14: 869 | P14: 366 | Q14: 964 | R14: 1063 | S14: 165 | T14: 245 | U14: 1067 | V14: 1194 | W14: 1036 | X14: 915 | Y14: 385 | Z14: 1089 | AA14: 1026 | AB14: 171 | AC14: 228 | AD14: 1021 | AE14: 1175 | AF14: 1002 | AG14: 890 | AH14: 381 | AI14: 994 | AJ14: 1020 | AK14: 242 | AL14: 235 | AM14: 1115 | AN14: 1287 | AO14: 1162 | AP14: 978 | AQ14: 346 | AR14: 1092 | AS14: 1130 | AT14: 75 | AU14: 138 | AV14: 741 | AW14: 787 | AX14: 673 | AY14: 654 | AZ14: 147 | BA14: 649 | BB14: 707 | BC14: 84 | BD14: 113 | BE14: 716 | BF14: 807 | BG14: 669 | BH14: 567 | BI14: 135 | BJ14: 566 | BK14: 657
A15: 180 | B15: 191 | C15: 1038 | D15: 1297 | E15: 1061 | F15: 1042 | G15: 403 | H15: 1316 | I15: 1281 | J15: 175 | K15: 198 | L15: 1070 | M15: 1356 | N15: 1056 | O15: 1031 | P15: 432 | Q15: 1436 | R15: 1236 | S15: 165 | T15: 178 | U15: 1121 | V15: 1274 | W15: 1133 | X15: 982 | Y15: 433 | Z15: 1367 | AA15: 1320 | AB15: 55 | AC15: 61 | AD15: 258 | AE15: 323 | AF15: 253 | AG15: 1000 | AH15: 425 | AI15: 1323 | AJ15: 1377 | AK15: 147 | AL15: 168 | AM15: 1182 | AN15: 1414 | AO15: 1114 | AP15: 1051 | AQ15: 454 | AR15: 1352 | AS15: 1394 | AT15: 90 | AU15: 124 | AV15: 760 | AW15: 845 | AX15: 678 | AY15: 664 | AZ15: 138 | BA15: 547 | BB15: 629 | BC15: 84 | BD15: 117 | BE15: 667 | BF15: 791 | BG15: 603 | BH15: 604 | BI15: 145 | BJ15: 512 | BK15: 586
A16: 284 | B16: 204 | C16: 1375 | D16: 1590 | E16: 1391 | F16: 1247 | G16: 580 | H16: 1669 | I16: 1618 | J16: 270 | K16: 206 | L16: 1369 | M16: 1625 | N16: 1453 | O16: 1234 | P16: 588 | Q16: 1905 | R16: 1713 | S16: 298 | T16: 218 | U16: 1352 | V16: 1641 | W16: 1417 | X16: 1305 | Y16: 550 | Z16: 1773 | AA16: 1666 | AB16: 118 | AC16: 123 | AD16: 668 | AE16: 850 | AF16: 647 | AG16: 1302 | AH16: 547 | AI16: 1749 | AJ16: 1714 | AK16: 269 | AL16: 180 | AM16: 1368 | AN16: 1685 | AO16: 1410 | AP16: 1336 | AQ16: 516 | AR16: 1573 | AS16: 1656 | AT16: 102 | AU16: 95 | AV16: 648 | AW16: 733 | AX16: 590 | AY16: 593 | AZ16: 106 | BA16: 488 | BB16: 644 | BC16: 59 | BD16: 82 | BE16: 645 | BF16: 712 | BG16: 577 | BH16: 564 | BI16: 129 | BJ16: 477 | BK16: 585
A17: 496 | B17: 245 | C17: 1534 | D17: 1970 | E17: 1711 | F17: 1588 | G17: 573 | H17: 1879 | I17: 1857 | J17: 405 | K17: 230 | L17: 1450 | M17: 1709 | N17: 1947 | O17: 1640 | P17: 595 | Q17: 2119 | R17: 1888 | S17: 481 | T17: 276 | U17: 1612 | V17: 2040 | W17: 1820 | X17: 1606 | Y17: 577 | Z17: 2131 | AA17: 1939 | AB17: 357 | AC17: 176 | AD17: 972 | AE17: 1311 | AF17: 1180 | AG17: 1662 | AH17: 547 | AI17: 2000 | AJ17: 1905 | AK17: 330 | AL17: 227 | AM17: 1495 | AN17: 1930 | AO17: 1584 | AP17: 1577 | AQ17: 396 | AR17: 1501 | AS17: 1479 | AT17: 101 | AU17: 82 | AV17: 595 | AW17: 704 | AX17: 546 | AY17: 593 | AZ17: 116 | BA17: 535 | BB17: 524 | BC17: 80 | BD17: 74 | BE17: 650 | BF17: 635 | BG17: 532 | BH17: 547 | BI17: 123 | BJ17: 504 | BK17: 542
A18: 561 | B18: 283 | C18: 1645 | D18: 2164 | E18: 1922 | F18: 1830 | G18: 315 | H18: 930 | I18: 1015 | J18: 304 | K18: 129 | L18: 1112 | M18: 1114 | N18: 2140 | O18: 1797 | P18: 310 | Q18: 1372 | R18: 1011 | S18: 551 | T18: 311 | U18: 1936 | V18: 2171 | W18: 2150 | X18: 1894 | Y18: 304 | Z18: 1222 | AA18: 1120 | AB18: 387 | AC18: 229 | AD18: 1398 | AE18: 1637 | AF18: 1508 | AG18: 1831 | AH18: 282 | AI18: 1125 | AJ18: 1174 | AK18: 283 | AL18: 211 | AM18: 1460 | AN18: 1814 | AO18: 1497 | AP18: 1446 | AQ18: 225 | AR18: 883 | AS18: 904 | AT18: 74 | AU18: 65 | AV18: 652 | AW18: 610 | AX18: 575 | AY18: 498 | AZ18: 112 | BA18: 494 | BB18: 476 | BC18: 76 | BD18: 82 | BE18: 644 | BF18: 594 | BG18: 581 | BH18: 497 | BI18: 96 | BJ18: 412 | BK18: 426
A19: 184 | B19: 136 | C19: 952 | D19: 1203 | E19: 999 | F19: 953 | G19: 164 | H19: 572 | I19: 545 | J19: 171 | K19: 63 | L19: 590 | M19: 664 | N19: 1364 | O19: 975 | P19: 179 | Q19: 591 | R19: 652 | S19: 222 | T19: 174 | U19: 1154 | V19: 1296 | W19: 1266 | X19: 1068 | Y19: 188 | Z19: 598 | AA19: 591 | AB19: 163 | AC19: 123 | AD19: 908 | AE19: 1080 | AF19: 984 | AG19: 1090 | AH19: 192 | AI19: 535 | AJ19: 617 | AK19: 133 | AL19: 130 | AM19: 897 | AN19: 1092 | AO19: 924 | AP19: 852 | AQ19: 146 | AR19: 545 | AS19: 569 | AT19: 85 | AU19: 79 | AV19: 621 | AW19: 578 | AX19: 528 | AY19: 455 | AZ19: 90 | BA19: 400 | BB19: 365 | BC19: 66 | BD19: 78 | BE19: 558 | BF19: 475 | BG19: 461 | BH19: 384 | BI19: 100 | BJ19: 389 | BK19: 369
A20: 80 | B20: 106 | C20: 610 | D20: 702 | E20: 603 | F20: 499 | G20: 150 | H20: 499 | I20: 417 | J20: 91 | K20: 96 | L20: 508 | M20: 691 | N20: 639 | O20: 612 | P20: 126 | Q20: 483 | R20: 488 | S20: 62 | T20: 60 | U20: 507 | V20: 622 | W20: 498 | X20: 582 | Y20: 130 | Z20: 527 | AA20: 469 | AB20: 78 | AC20: 98 | AD20: 540 | AE20: 810 | AF20: 525 | AG20: 597 | AH20: 126 | AI20: 465 | AJ20: 490 | AK20: 89 | AL20: 109 | AM20: 620 | AN20: 729 | AO20: 566 | AP20: 536 | AQ20: 121 | AR20: 465 | AS20: 448 | AT20: 63 | AU20: 66 | AV20: 471 | AW20: 483 | AX20: 439 | AY20: 349 | AZ20: 72 | BA20: 287 | BB20: 324 | BC20: 49 | BD20: 60 | BE20: 437 | BF20: 495 | BG20: 404 | BH20: 347 | BI20: 66 | BJ20: 283 | BK20: 314
A21: 66 | B21: 82 | C21: 500 | D21: 653 | E21: 495 | F21: 420 | G21: 81 | H21: 339 | I21: 366 | J21: 69 | K21: 93 | L21: 505 | M21: 672 | N21: 486 | O21: 462 | P21: 89 | Q21: 389 | R21: 417 | S21: 70 | T21: 98 | U21: 538 | V21: 705 | W21: 562 | X21: 462 | Y21: 109 | Z21: 413 | AA21: 455 | AB21: 68 | AC21: 82 | AD21: 510 | AE21: 727 | AF21: 458 | AG21: 460 | AH21: 119 | AI21: 455 | AJ21: 442 | AK21: 68 | AL21: 58 | AM21: 492 | AN21: 594 | AO21: 466 | AP21: 412 | AQ21: 104 | AR21: 421 | AS21: 390 | AT21: 46 | AU21: 45 | AV21: 355 | AW21: 371 | AX21: 325 | AY21: 303 | AZ21: 66 | BA21: 310 | BB21: 269 | BC21: 38 | BD21: 42 | BE21: 303 | BF21: 407 | BG21: 292 | BH21: 286 | BI21: 56 | BJ21: 220 | BK21: 259
A22: 39 | B22: 50 | C22: 365 | D22: 506 | E22: 369 | F22: 330 | G22: 61 | H22: 221 | I22: 225 | J22: 60 | K22: 51 | L22: 407 | M22: 500 | N22: 407 | O22: 358 | P22: 91 | Q22: 206 | R22: 378 | S22: 47 | T22: 42 | U22: 315 | V22: 403 | W22: 340 | X22: 423 | Y22: 75 | Z22: 211 | AA22: 312 | AB22: 66 | AC22: 69 | AD22: 418 | AE22: 526 | AF22: 438 | AG22: 400 | AH22: 106 | AI22: 276 | AJ22: 310 | AK22: 50 | AL22: 50 | AM22: 414 | AN22: 487 | AO22: 435 | AP22: 348 | AQ22: 75 | AR22: 343 | AS22: 305 | AT22: 42 | AU22: 37 | AV22: 310 | AW22: 332 | AX22: 321 | AY22: 243 | AZ22: 54 | BA22: 231 | BB22: 282 | BC22: 39 | BD22: 24 | BE22: 240 | BF22: 319 | BG22: 246 | BH22: 235 | BI22: 30 | BJ22: 144 | BK22: 178
A23: 28 | B23: 38 | C23: 202 | D23: 280 | E23: 223 | F23: 230 | G23: 33 | H23: 142 | I23: 121 | J23: 31 | K23: 36 | L23: 214 | M23: 407 | N23: 214 | O23: 352 | P23: 33 | Q23: 143 | R23: 133 | S23: 30 | T23: 41 | U23: 240 | V23: 340 | W23: 236 | X23: 265 | Y23: 36 | Z23: 151 | AA23: 135 | AB23: 28 | AC23: 30 | AD23: 180 | AE23: 224 | AF23: 213 | AG23: 265 | AH23: 39 | AI23: 176 | AJ23: 163 | AK23: 31 | AL23: 29 | AM23: 301 | AN23: 307 | AO23: 329 | AP23: 282 | AQ23: 43 | AR23: 202 | AS23: 192 | AT23: 34 | AU23: 29 | AV23: 253 | AW23: 317 | AX23: 254 | AY23: 238 | AZ23: 41 | BA23: 159 | BB23: 156 | BC23: 30 | BD23: 25 | BE23: 167 | BF23: 209 | BG23: 149 | BH23: 149 | BI23: 17 | BJ23: 84 | BK23: 96
A24: 17 | B24: 22 | C24: 104 | D24: 151 | E24: 135 | F24: 113 | G24: 24 | H24: 92 | I24: 69 | J24: 24 | K24: 25 | L24: 113 | M24: 171 | N24: 144 | O24: 106 | P24: 21 | Q24: 95 | R24: 63 | S24: 25 | T24: 21 | U24: 134 | V24: 177 | W24: 162 | X24: 133 | Y24: 14 | Z24: 101 | AA24: 73 | AB24: 21 | AC24: 27 | AD24: 167 | AE24: 154 | AF24: 161 | AG24: 156 | AH24: 8 | AI24: 86 | AJ24: 85 | AK24: 4 | AL24: 3 | AM24: 35 | AN24: 31 | AO24: 39 | AP24: 162 | AQ24: 26 | AR24: 110 | AS24: 124 | AT24: 32 | AU24: 26 | AV24: 154 | AW24: 213 | AX24: 176 | AY24: 131 | AZ24: 17 | BA24: 60 | BB24: 83 | BC24: 18 | BD24: 11 | BE24: 85 | BF24: 123 | BG24: 98 | BH24: 78 | BI24: 10 | BJ24: 42 | BK24: 52
